bitfinex/quotes_BTCUSD_20260127
["timestamp","ask_amount","ask_price","bid_price","bid_amount"]
[1769553112021,0.11192499,89183.0,89171.0,0.04690851]
[1769553112219,0.10348689,89184.0,89171.0,0.04690851]
[1769553112451,0.111924,89183.0,89171.0,0.04690851]
[1769553112748,0.10348689,89184.0,89171.0,0.04690851]
[1769553112950,0.11192351,89183.0,89171.0,0.04690851]
[1769553113154,0.10348689,89184.0,89171.0,0.04690851]
[1769553113383,0.11192279,89183.0,89171.0,0.04690851]
[1769553113539,0.10348689,89184.0,89171.0,0.04690851]
[1769553113742,0.11192279,89183.0,89171.0,0.04690851]
[1769553113948,0.10348689,89190.0,89173.0,0.04915753]
[1769553114264,0.11191841,89189.0,89173.0,0.04915753]
[1769553114468,0.2174718,89188.0,89173.0,0.04915753]
[1769553114760,0.11191841,89187.0,89173.0,0.04915753]
[1769553114993,0.11191841,89186.0,89173.0,0.04915753]
[1769553115199,0.11191841,89185.0,89173.0,0.04915753]
[1769553115404,0.11191841,89184.0,89173.0,0.04915753]
[1769553115606,0.11191841,89183.0,89173.0,0.04915753]
[1769553115808,0.10555339,89188.0,89173.0,0.04915753]
[1769553115964,0.11191802,89187.0,89173.0,0.04915753]
[1769553116129,0.11191802,89186.0,89173.0,0.04915753]
[1769553116330,0.11191802,89185.0,89173.0,0.04915753]
[1769553116547,0.11191802,89184.0,89173.0,0.04915753]
[1769553116780,0.11191802,89183.0,89173.0,0.04915753]
[1769553116986,0.10555339,89188.0,89173.0,0.04915753]
[1769553117183,0.11191107,89187.0,89174.0,0.05606985]
[1769553117384,0.11191107,89187.0,89170.0,0.26449613]
[1769553117385,0.11191107,89186.0,89175.0,0.04915753]
[1769553117566,0.11191107,89185.0,89175.0,0.04915753]
[1769553117766,0.11191107,89184.0,89175.0,0.04915753]
[1769553117965,0.10555339,89189.0,89175.0,0.04915753]
[1769553118244,0.11191237,89188.0,89175.0,0.04915753]
[1769553118487,0.11191237,89187.0,89175.0,0.04915753]
[1769553118699,0.11191237,89186.0,89175.0,0.04915753]
[1769553118927,0.11191237,89185.0,89175.0,0.04915753]
[1769553119148,0.11191237,89184.0,89175.0,0.04915753]
[1769553119294,0.10555339,89189.0,89175.0,0.04915753]
[1769553119520,0.11189689,89188.0,89175.0,0.04915753]
[1769553119676,0.11189689,89187.0,89175.0,0.04915753]
[1769553119894,0.11189689,89186.0,89175.0,0.04915753]
[1769553120129,0.11189689,89185.0,89175.0,0.04915753]
[1769553120329,0.11189689,89184.0,89175.0,0.04915753]
[1769553120542,0.10555339,89189.0,89175.0,0.04915753]
[1769553120748,0.11189363,89188.0,89175.0,0.04915753]
[1769553120947,0.11189363,89187.0,89175.0,0.04915753]
[1769553121157,0.11189363,89186.0,89175.0,0.04915753]
[1769553121359,0.11189363,89185.0,89175.0,0.04915753]
[1769553121571,0.11189363,89184.0,89175.0,0.04915753]
[1769553121782,0.10555339,89188.0,89175.0,0.04915753]
[1769553121985,0.11186469,89187.0,89175.0,0.04915753]
[1769553122187,0.11186469,89186.0,89175.0,0.04915753]
[1769553122391,0.11186469,89185.0,89175.0,0.04915753]
[1769553122594,0.0001961,89191.0,89175.0,0.26449613]
[1769553122805,0.10574949,89202.0,89187.0,0.02891723]
[1769553123009,0.10574949,89202.0,89190.0,0.26449613]
[1769553123657,0.10574949,89202.0,89190.0,0.29341336]
[1769553123969,0.10584418,89202.0,89190.0,0.29341336]
[1769553124655,0.10584418,89202.0,89190.0,0.26449613]
[1769553124862,0.10584418,89202.0,89191.0,0.02485006]
[1769553127103,0.01,89191.0,89178.0,0.05606729]
[1769553127305,0.01,89191.0,89179.0,0.02485006]
[1769553127483,0.10555339,89195.0,89179.0,0.02485006]
[1769553127715,0.10555339,89195.0,89181.0,0.02485006]
[1769553133686,0.08971452,89202.0,89183.0,0.0809142]
[1769553133941,0.08971452,89202.0,89186.0,0.10558651]
[1769553134174,0.00029079,89202.0,89187.0,0.02485006]
[1769553134349,0.10584418,89202.0,89187.0,0.02485006]
[1769553134551,0.02359328,89200.0,89180.0,0.26442918]
[1769553134756,0.10555339,89198.0,89180.0,0.26442918]
[1769553134940,0.21738998,89197.0,89180.0,0.26442918]
[1769553135279,0.11183659,89196.0,89180.0,0.28927924]
[1769553135477,0.10555339,89197.0,89180.0,0.28927924]
[1769553135478,0.11183659,89195.0,89180.0,0.28927924]
[1769553135628,0.10555339,89197.0,89180.0,0.28927924]
[1769553135629,0.11183659,89194.0,89180.0,0.28927924]
[1769553135828,0.10555339,89197.0,89180.0,0.28927924]
[1769553136026,0.11183742,89196.0,89180.0,0.28927924]
[1769553136291,0.11183742,89195.0,89186.0,0.26442918]
[1769553136598,0.11183742,89194.0,89186.0,0.26442918]
[1769553136778,0.10555339,89197.0,89186.0,0.26442918]
[1769553137007,0.11183878,89196.0,89188.0,0.10558651]
[1769553137145,0.0002499,89201.0,89189.0,0.02485006]
[1769553137343,0.11183714,89200.0,89189.0,0.02485006]
[1769553137541,0.11183714,89199.0,89189.0,0.02485006]
[1769553137743,0.0002499,89201.0,89189.0,0.02485006]
[1769553137744,0.11183714,89198.0,89189.0,0.02485006]
[1769553137961,0.0002499,89201.0,89189.0,0.02485006]
[1769553140195,0.0002499,89201.0,89190.0,0.26442918]
[1769553140349,0.0002499,89201.0,89184.0,0.0560636]
[1769553140559,0.10555339,89200.0,89183.0,0.02485006]
[1769553141331,0.12914667,89198.0,89181.0,0.05606562]
[1769553141530,0.02359328,89197.0,89180.0,0.26442918]
[1769553141751,0.10555339,89196.0,89180.0,0.26442918]
[1769553143529,0.0002499,89201.0,89186.0,0.26442918]
[1769553143742,0.0002499,89201.0,89183.0,0.19310116]
[1769553143946,0.0002499,89201.0,89184.0,0.05606384]
[1769553144610,0.0002499,89201.0,89183.0,0.19310119]
[1769553144897,0.0002499,89201.0,89183.0,0.13703671]
[1769553145305,0.0002499,89201.0,89184.0,0.05606351]
[1769553146372,0.0002499,89201.0,89185.0,0.0560632]
[1769553147289,0.0002499,89201.0,89184.0,0.05606349]
[1769553147579,0.0002499,89201.0,89185.0,0.05606313]
[1769553148389,0.10761987,89200.0,89184.0,0.02391581]
[1769553148892,0.22277987,89200.0,89184.0,0.02391581]
[1769553149586,0.11516,89200.0,89184.0,0.02391581]
[1769553149792,0.10761987,89199.0,89184.0,0.02391581]
[1769553155288,0.11187346,89198.0,89184.0,0.02391581]
[1769553155476,0.10761987,89199.0,89184.0,0.02391581]
[1769553156655,0.11187382,89198.0,89184.0,0.02391581]
[1769553156830,0.10761987,89198.0,89184.0,0.02391581]
[1769553162643,0.11188711,89197.0,89184.0,0.02391581]
[1769553162847,0.10761987,89198.0,89184.0,0.02391581]
[1769553163055,0.11188647,89197.0,89184.0,0.02391581]
[1769553163267,0.10761987,89198.0,89184.0,0.02391581]
[1769553163477,0.11516,89197.0,89184.0,0.02391581]
[1769553168722,0.11516,89197.0,89184.0,0.0560638]
[1769553168960,0.11516,89197.0,89185.0,0.04241223]
[1769553169482,0.1119396,89196.0,89185.0,0.04241223]
[1769553169683,0.11193927,89195.0,89185.0,0.04241223]
[1769553169893,0.11516,89197.0,89185.0,0.04241223]
[1769553170097,0.11193956,89196.0,89185.0,0.04241223]
[1769553170249,0.11193956,89195.0,89185.0,0.04241223]
[1769553170453,0.11516,89197.0,89185.0,0.04241223]
[1769553170654,0.11194544,89196.0,89185.0,0.04241223]
[1769553170861,0.11516,89197.0,89185.0,0.04241223]
[1769553171047,0.11193785,89196.0,89185.0,0.04241223]
[1769553171247,0.11193785,89195.0,89185.0,0.04241223]
[1769553171484,0.11516,89197.0,89185.0,0.04241223]
[1769553171701,0.11194413,89196.0,89185.0,0.04241223]
[1769553171901,0.11194413,89195.0,89185.0,0.04241223]
[1769553172118,0.11516,89197.0,89185.0,0.04241223]
[1769553172328,0.11194413,89196.0,89185.0,0.04241223]
[1769553172533,0.11194413,89195.0,89185.0,0.04241223]
[1769553172817,0.11516,89197.0,89185.0,0.04241223]
[1769553172961,0.11194429,89196.0,89185.0,0.04241223]
[1769553173161,0.11194429,89195.0,89185.0,0.04241223]
[1769553173380,0.11516,89197.0,89185.0,0.04241223]
[1769553173586,0.11194491,89196.0,89185.0,0.04241223]
[1769553173786,0.11194491,89195.0,89185.0,0.04241223]
[1769553173980,0.11516,89197.0,89185.0,0.04241223]
[1769553174265,0.11194845,89196.0,89185.0,0.04241223]
[1769553174466,0.11194845,89195.0,89185.0,0.04241223]
[1769553174695,0.11516,89197.0,89185.0,0.04241223]
[1769553174897,0.11195065,89196.0,89185.0,0.04241223]
[1769553175231,0.11195065,89195.0,89185.0,0.04241223]
[1769553175559,0.11516,89197.0,89185.0,0.04241223]
[1769553175771,0.11195273,89196.0,89185.0,0.04241223]
[1769553175969,0.11195273,89195.0,89185.0,0.04241223]
[1769553176146,0.11516,89197.0,89185.0,0.04241223]
[1769553176349,0.11195765,89196.0,89185.0,0.04241223]
[1769553176531,0.11195765,89195.0,89185.0,0.04241223]
[1769553176736,0.11195765,89194.0,89185.0,0.04241223]
[1769553176948,0.11516,89197.0,89185.0,0.04241223]
[1769553177151,0.11195751,89196.0,89185.0,0.04241223]
[1769553177349,0.11195751,89195.0,89185.0,0.04241223]
[1769553177552,0.11195751,89194.0,89185.0,0.04241223]
[1769553177749,0.11516,89197.0,89185.0,0.04241223]
[1769553177970,0.11195984,89196.0,89185.0,0.04241223]
[1769553178153,0.11195984,89195.0,89185.0,0.04241223]
[1769553178371,0.11195984,89194.0,89185.0,0.04241223]
[1769553178576,0.11516,89197.0,89185.0,0.04241223]
[1769553178778,0.11196269,89196.0,89185.0,0.04241223]
[1769553178978,0.11196269,89195.0,89185.0,0.04241223]
[1769553179182,0.11196269,89194.0,89185.0,0.04241223]
[1769553179383,0.11516,89197.0,89185.0,0.04241223]
[1769553179597,0.11196339,89196.0,89185.0,0.04241223]
[1769553179797,0.11196339,89195.0,89185.0,0.04241223]
[1769553180021,0.11196339,89194.0,89185.0,0.04241223]
[1769553180244,0.11516,89197.0,89185.0,0.04241223]
[1769553180470,0.11195871,89196.0,89185.0,0.04241223]
[1769553180691,0.11195871,89195.0,89185.0,0.04241223]
[1769553180939,0.11516,89197.0,89185.0,0.04241223]
[1769553181128,0.11195193,89196.0,89185.0,0.04241223]
[1769553181335,0.11195193,89195.0,89185.0,0.04241223]
[1769553181535,0.11195193,89194.0,89185.0,0.04241223]
[1769553181771,0.11516,89197.0,89185.0,0.04241223]
[1769553181972,0.1119555,89196.0,89185.0,0.04241223]
[1769553182102,0.1119555,89195.0,89185.0,0.04241223]
[1769553182308,0.1119555,89194.0,89185.0,0.04241223]
[1769553182507,0.22487687,89197.0,89185.0,0.04241223]
[1769553182709,0.11195462,89196.0,89185.0,0.04241223]
[1769553182910,0.11195462,89195.0,89185.0,0.04241223]
[1769553183111,0.11195462,89194.0,89185.0,0.04241223]
[1769553183353,0.22487687,89197.0,89185.0,0.04241223]
[1769553183563,0.1119546,89196.0,89185.0,0.04241223]
[1769553183789,0.1119546,89195.0,89185.0,0.04241223]
[1769553183990,0.1119546,89194.0,89185.0,0.04241223]
[1769553184199,0.22487687,89197.0,89185.0,0.04241223]
[1769553184512,0.11195402,89196.0,89185.0,0.04241223]
[1769553184715,0.11195402,89195.0,89185.0,0.04241223]
[1769553184916,0.11195402,89194.0,89185.0,0.04241223]
[1769553185061,0.22487687,89197.0,89185.0,0.04241223]
[1769553185282,0.11195411,89196.0,89185.0,0.04241223]
[1769553185486,0.11195411,89195.0,89185.0,0.04241223]
[1769553185683,0.22487687,89197.0,89185.0,0.04241223]
[1769553185684,0.11195411,89194.0,89185.0,0.04241223]
[1769553185880,0.22487687,89197.0,89185.0,0.04241223]
[1769553186084,0.11195423,89196.0,89185.0,0.04241223]
[1769553186307,0.11195423,89195.0,89185.0,0.04241223]
[1769553186638,0.11195423,89194.0,89185.0,0.04241223]
[1769553186819,0.22487687,89197.0,89185.0,0.04241223]
[1769553187153,0.11195441,89196.0,89185.0,0.04241223]
[1769553187361,0.11195441,89195.0,89185.0,0.04241223]
[1769553187563,0.11195441,89194.0,89185.0,0.04241223]
[1769553187790,0.22487687,89197.0,89185.0,0.04241223]
[1769553187961,0.11195469,89196.0,89185.0,0.04241223]
[1769553188124,0.11195469,89195.0,89185.0,0.04241223]
[1769553188334,0.11195469,89194.0,89185.0,0.04241223]
[1769553188553,0.11516,89195.0,89185.0,0.04241223]
[1769553188754,0.11194812,89194.0,89185.0,0.04241223]
[1769553188954,0.11516,89195.0,89185.0,0.04241223]
[1769553189157,0.11194812,89194.0,89185.0,0.04241223]
[1769553189389,0.11516,89195.0,89185.0,0.04241223]
[1769553189601,0.11194965,89194.0,89185.0,0.04241223]
[1769553189848,0.11516,89195.0,89185.0,0.04241223]
[1769553190054,0.11194987,89194.0,89185.0,0.04241223]
[1769553190255,0.11516,89195.0,89185.0,0.04241223]
[1769553190464,0.11194998,89194.0,89185.0,0.04241223]
[1769553190726,0.10971687,89197.0,89185.0,0.04241223]
[1769553190879,0.11516,89195.0,89185.0,0.04241223]
[1769553191076,0.11195038,89194.0,89185.0,0.04241223]
[1769553191312,0.11516,89195.0,89185.0,0.04241223]
[1769553191511,0.11196872,89194.0,89185.0,0.04241223]
[1769553191719,0.11516,89195.0,89185.0,0.09847539]
[1769553191996,0.11196831,89194.0,89185.0,0.09847539]
[1769553192197,0.11516,89195.0,89185.0,0.09847539]
[1769553192449,0.11196826,89194.0,89185.0,0.04241223]
[1769553192625,0.11516,89195.0,89185.0,0.04241223]
[1769553192825,0.11197051,89194.0,89185.0,0.09847539]
[1769553193027,0.11516,89195.0,89185.0,0.09847539]
[1769553193184,0.11197051,89194.0,89185.0,0.09847539]
[1769553193521,0.11516,89195.0,89185.0,0.04241223]
[1769553193747,0.11197407,89194.0,89185.0,0.04241223]
[1769553193952,0.11516,89195.0,89185.0,0.04241223]
[1769553194076,0.1119654,89194.0,89185.0,0.04241223]
[1769553194276,0.11516,89195.0,89185.0,0.04241223]
[1769553194518,0.11196564,89194.0,89185.0,0.04241223]
[1769553194771,0.11516,89195.0,89185.0,0.04241223]
[1769553194924,0.11196772,89194.0,89185.0,0.04241223]
[1769553195143,0.11516,89195.0,89185.0,0.04241223]
[1769553195349,0.11196776,89194.0,89185.0,0.04241223]
[1769553195552,0.11516,89195.0,89185.0,0.04241223]
[1769553195734,0.11196002,89194.0,89185.0,0.04241223]
[1769553195924,0.11516,89195.0,89185.0,0.04241223]
[1769553196140,0.11194867,89194.0,89185.0,0.04241223]
[1769553196348,0.0001359,89195.0,89185.0,0.04241223]
[1769553196550,0.11194838,89194.0,89185.0,0.04241223]
[1769553196749,0.0001359,89195.0,89185.0,0.04241223]
[1769553196994,0.11194848,89194.0,89185.0,0.04241223]
[1769553197242,0.0001359,89195.0,89185.0,0.04241223]
[1769553197465,0.11194877,89194.0,89185.0,0.04241223]
[1769553197672,0.0001359,89195.0,89185.0,0.04241223]
[1769553197878,0.11195366,89194.0,89185.0,0.04241223]
[1769553198082,0.0001359,89195.0,89185.0,0.04241223]
[1769553198206,0.11197236,89194.0,89185.0,0.04241223]
[1769553198425,0.11197154,89193.0,89185.0,0.04241223]
[1769553198653,0.0001359,89195.0,89185.0,0.04241223]
[1769553198852,0.11197254,89194.0,89185.0,0.04241223]
[1769553199054,0.0001359,89195.0,89185.0,0.04241223]
[1769553199256,0.11196754,89194.0,89185.0,0.04241223]
[1769553199528,0.11196634,89193.0,89185.0,0.04241223]
[1769553199756,0.0001359,89195.0,89185.0,0.04241223]
[1769553199924,0.1119644,89194.0,89185.0,0.04241223]
[1769553200127,0.1119644,89193.0,89185.0,0.04241223]
[1769553200284,0.0001359,89195.0,89185.0,0.04241223]
[1769553200489,0.11196096,89194.0,89185.0,0.04241223]
[1769553200708,0.11196096,89193.0,89185.0,0.04241223]
[1769553200913,0.0001359,89195.0,89185.0,0.04241223]
[1769553201121,0.11196043,89194.0,89185.0,0.04241223]
[1769553201276,0.11196043,89193.0,89185.0,0.04241223]
[1769553201606,0.0001359,89195.0,89185.0,0.04241223]
[1769553201771,0.11196046,89194.0,89185.0,0.04241223]
[1769553201972,0.11196046,89193.0,89185.0,0.04241223]
[1769553202218,0.0001359,89195.0,89185.0,0.04241223]
[1769553202426,0.10971687,89193.0,89171.0,0.0560717]
[1769553202627,0.01,89185.0,89177.0,0.03919836]
[1769553203025,0.26442929,89191.0,89177.0,0.03919836]
[1769553203428,0.10971687,89192.0,89177.0,0.03919836]
[1769553204829,0.26442929,89190.0,89177.0,0.03919836]
[1769553205032,0.10738938,89189.0,89170.0,0.03919836]
[1769553205857,0.26442929,89190.0,89170.0,0.03919836]
[1769553205858,0.11195936,89188.0,89170.0,0.03919836]
[1769553206121,0.10738938,89187.0,89170.0,0.03919836]
[1769553206814,0.10738938,89187.0,89165.0,0.05607549]
[1769553207037,0.26442929,89180.0,89165.0,0.05607549]
[1769553207237,0.10738938,89179.0,89164.0,0.05607599]
[1769553207506,0.10738938,89179.0,89164.0,0.0414476]
[1769553208063,0.10738938,89179.0,89165.0,0.0414476]
[1769553209630,0.10738938,89179.0,89163.0,0.0001641]
[1769553210353,0.10738938,89179.0,89163.0,0.0416117]
[1769553212017,0.10738938,89179.0,89163.0,0.09768825]
[1769553212200,0.10738938,89179.0,89164.0,0.04369686]
[1769553212759,0.10738938,89179.0,89164.0,0.09977324]
[1769553212958,0.10738938,89179.0,89164.0,0.04369686]
[1769553214038,0.10738938,89179.0,89164.0,0.09977299]
[1769553215102,0.10738938,89179.0,89164.0,0.04369686]
[1769553219569,0.26442929,89190.0,89165.0,0.05607573]
[1769553219819,0.22700231,89189.0,89166.0,0.04594598]
[1769553220042,0.10738938,89187.0,89166.0,0.04594598]
[1769553220289,0.26442929,89180.0,89166.0,0.04594598]
[1769553220531,0.10738938,89185.0,89166.0,0.04594598]
[1769553220762,0.26442929,89180.0,89166.0,0.04594598]
[1769553221633,0.10738938,89185.0,89166.0,0.04594598]
[1769553221837,0.11516,89188.0,89171.0,0.04594598]
[1769553222037,0.11184339,89187.0,89171.0,0.04594598]
[1769553222344,0.11184339,89186.0,89171.0,0.04594598]
[1769553222578,0.11516,89188.0,89172.0,0.04594598]
[1769553222781,0.11184804,89187.0,89172.0,0.04594598]
[1769553222957,0.22254938,89188.0,89172.0,0.04594598]
[1769553223159,0.11184843,89187.0,89172.0,0.04594598]
[1769553223397,0.22254938,89188.0,89172.0,0.04594598]
[1769553223603,0.10738938,89188.0,89172.0,0.04594598]
[1769553223812,0.10738938,89188.0,89173.0,0.04594598]
[1769553223960,0.10738938,89188.0,89175.0,0.04594598]
[1769553224633,0.0001359,89195.0,89180.0,0.04594598]
[1769553224879,0.0001359,89195.0,89181.0,0.04594598]
[1769553225074,0.0001359,89195.0,89182.0,0.04594598]
[1769553227569,0.11188271,89194.0,89182.0,0.04594598]
[1769553227831,0.0001359,89195.0,89182.0,0.04594598]
[1769553227832,0.11188271,89193.0,89182.0,0.04594598]
[1769553228072,0.0001359,89195.0,89182.0,0.04594598]
[1769553228269,0.11188512,89194.0,89182.0,0.04594598]
[1769553228389,0.11188512,89193.0,89182.0,0.04594598]
[1769553228589,0.0001359,89195.0,89181.0,0.04369721]
[1769553228790,0.0001359,89195.0,89187.0,0.04369721]
[1769553231719,0.0001359,89195.0,89187.0,0.0560619]
[1769553232027,0.0001359,89195.0,89186.0,0.03919925]
[1769553232208,0.0001359,89195.0,89186.0,0.0560624]
[1769553232415,0.0001359,89195.0,89187.0,0.03919925]
[1769553235981,0.0001359,89195.0,89188.0,0.0324523]
[1769553237461,0.0001359,89195.0,89181.0,0.11574691]
[1769553237462,0.0001359,89195.0,89185.0,0.0324523]
[1769553237663,0.0001359,89195.0,89191.0,0.08851165]
[1769553238076,0.0001359,89195.0,89192.0,0.0324523]
[1769553240400,0.0001359,89195.0,89190.0,0.05606007]
[1769553240599,0.0001359,89195.0,89190.0,0.08626335]
[1769553241476,0.0001359,89195.0,89190.0,0.03020328]
[1769553242913,0.0001359,89195.0,89190.0,0.08626326]
[1769553243320,0.0001359,89195.0,89191.0,0.05605928]
[1769553243466,0.0001359,89195.0,89191.0,0.08626256]
[1769553244327,0.0001359,89195.0,89191.0,0.03020328]
[1769553244529,0.0001359,89195.0,89191.0,0.08626253]
[1769553245056,0.0001359,89195.0,89192.0,0.02795427]
[1769553245494,0.0001359,89195.0,89188.0,0.08401543]
[1769553245900,0.0001359,89195.0,89189.0,0.05606061]
[1769553246323,0.0001359,89195.0,89190.0,0.02795427]
[1769553251590,0.0001359,89195.0,89186.0,0.05606251]
[1769553251730,0.0001359,89195.0,89187.0,0.05606189]
[1769553252354,0.0001359,89195.0,89181.0,0.11118254]
[1769553252571,0.0001359,89195.0,89192.0,0.02570526]
[1769553254442,0.0001359,89195.0,89193.0,0.0247902]
[1769553256067,0.0001359,89195.0,89191.0,0.05605919]
[1769553256331,0.0001359,89195.0,89192.0,0.05605874]
[1769553256687,0.0001359,89195.0,89193.0,0.0247902]
[1769553259635,0.08947305,89211.0,89187.0,0.0247902]
[1769553259815,0.11210532,89210.0,89199.0,0.05605383]
[1769553260226,0.11210532,89209.0,89201.0,0.0247902]
[1769553260440,0.11210532,89208.0,89201.0,0.0247902]
[1769553260634,0.11210532,89207.0,89201.0,0.0247902]
[1769553260955,0.11210532,89206.0,89201.0,0.0247902]
[1769553261066,0.11210532,89205.0,89201.0,0.0247902]
[1769553261268,0.08947305,89215.0,89201.0,0.0247902]
[1769553261494,0.11217261,89212.0,89201.0,0.0247902]
[1769553261703,0.11217261,89211.0,89201.0,0.08084329]
[1769553261916,0.10740142,89218.0,89201.0,0.08084329]
[1769553261917,0.11217261,89210.0,89201.0,0.05605309]
[1769553262160,0.11217261,89209.0,89202.0,0.0247902]
[1769553262330,0.11217261,89208.0,89202.0,0.0247902]
[1769553262548,0.11217261,89207.0,89202.0,0.0247902]
[1769553262752,0.08947305,89217.0,89202.0,0.0247902]
[1769553262950,0.11217917,89212.0,89202.0,0.0247902]
[1769553263157,0.11217917,89211.0,89202.0,0.0247902]
[1769553263322,0.11217917,89210.0,89202.0,0.0247902]
[1769553263522,0.11217917,89209.0,89202.0,0.0247902]
[1769553263723,0.11217917,89208.0,89202.0,0.0247902]
[1769553264060,0.08947305,89217.0,89202.0,0.0247902]
[1769553264303,0.11217001,89212.0,89202.0,0.0247902]
[1769553264459,0.11217001,89211.0,89202.0,0.0247902]
[1769553264661,0.11217001,89210.0,89202.0,0.0247902]
[1769553264861,0.11217001,89209.0,89202.0,0.0247902]
[1769553265231,0.11217001,89208.0,89202.0,0.0247902]
[1769553265437,0.08947305,89217.0,89202.0,0.0247902]
[1769553265644,0.11215931,89212.0,89202.0,0.0247902]
[1769553265824,0.11215931,89211.0,89202.0,0.05605233]
[1769553265967,0.11215931,89210.0,89203.0,0.02323794]
[1769553266167,0.19687447,89218.0,89203.0,0.02323794]
[1769553266168,0.11215931,89209.0,89203.0,0.02323794]
[1769553266403,0.11215931,89208.0,89203.0,0.02323794]
[1769553266605,0.19687447,89218.0,89203.0,0.02323794]
[1769553266809,0.11215554,89212.0,89203.0,0.02323794]
[1769553267010,0.11215554,89211.0,89203.0,0.02323794]
[1769553267252,0.11215554,89210.0,89203.0,0.02323794]
[1769553267453,0.11215554,89209.0,89203.0,0.07928978]
[1769553267631,0.11215554,89208.0,89204.0,0.02323794]
[1769553267829,0.19687447,89218.0,89204.0,0.02323794]
[1769553268067,0.11215298,89212.0,89204.0,0.02323794]
[1769553268218,0.11215298,89211.0,89204.0,0.02323794]
[1769553268574,0.11215298,89210.0,89204.0,0.02323794]
[1769553268795,0.11215298,89209.0,89204.0,0.02323794]
[1769553269012,0.19687447,89218.0,89204.0,0.02323794]
[1769553269216,0.11214673,89212.0,89204.0,0.02323794]
[1769553269450,0.11214673,89211.0,89200.0,0.05605338]
[1769553269673,0.11214673,89210.0,89201.0,0.05605298]
[1769553269851,0.11214673,89209.0,89202.0,0.05605251]
[1769553270059,0.19687447,89218.0,89202.0,0.05605251]
[1769553270190,0.11214121,89212.0,89202.0,0.05605251]
[1769553270399,0.19687447,89218.0,89202.0,0.05605251]
[1769553270400,0.11214121,89211.0,89203.0,0.05605154]
[1769553270603,0.11214121,89210.0,89203.0,0.05605154]
[1769553270829,0.11214121,89209.0,89203.0,0.05605192]
[1769553271035,0.19687447,89218.0,89202.0,0.05605251]
[1769553271237,0.11213681,89212.0,89202.0,0.05605251]
[1769553271487,0.11213681,89211.0,89203.0,0.05605186]
[1769553271692,0.11213681,89210.0,89203.0,0.05605186]
[1769553271854,0.11213681,89209.0,89203.0,0.05605186]
[1769553272060,0.19687447,89218.0,89203.0,0.05605186]
[1769553272278,0.11213418,89212.0,89203.0,0.05605186]
[1769553272481,0.11213418,89211.0,89203.0,0.05605186]
[1769553272730,0.11213418,89210.0,89203.0,0.05605186]
[1769553272843,0.11213418,89209.0,89203.0,0.05605186]
[1769553273221,0.19687447,89218.0,89203.0,0.05605186]
[1769553273429,0.11212997,89212.0,89203.0,0.05605186]
[1769553273632,0.11212997,89211.0,89203.0,0.02323794]
[1769553273837,0.00015,89222.0,89210.0,0.05604713]
[1769553274071,0.00015,89222.0,89211.0,0.05604656]
[1769553274433,0.00015,89222.0,89210.0,0.05604713]
[1769553275297,0.00015,89222.0,89207.0,0.22419527]
[1769553275642,1e-08,89213.0,89212.0,0.17794003]
[1769553282376,0.00015,89222.0,89221.0,0.05604061]
[1769553282580,0.00015,89222.0,89221.0,0.04604061]
[1769553283611,0.00015,89222.0,89215.0,0.02323794]
[1769553283811,0.00015,89222.0,89219.0,0.05604152]
[1769553284102,0.00015,89222.0,89220.0,0.05604122]
[1769553285242,0.00015,89222.0,89221.0,0.05604061]
[1769553286890,0.00015,89222.0,89220.0,0.05604097]
[1769553287235,0.00015,89222.0,89221.0,0.05604061]
[1769553287646,0.10658887,89236.0,89228.0,0.0560358]
[1769553287853,0.0002907,89231.0,89229.0,0.05603521]
[1769553288047,0.0002907,89231.0,89230.0,0.05603496]
[1769553288498,0.0002,89239.0,89231.0,0.05603398]
[1769553288655,0.11192771,89238.0,89230.0,0.05603496]
[1769553288865,0.11192771,89237.0,89230.0,0.05603496]
[1769553289107,0.0002,89239.0,89229.0,0.26439773]
[1769553289287,0.0002,89239.0,89229.0,0.32043308]
[1769553289288,0.11192699,89238.0,89229.0,0.32043308]
[1769553289484,0.0002,89239.0,89229.0,0.32043308]
[1769553289676,0.11192699,89238.0,89229.0,0.32043308]
[1769553289888,0.0002,89239.0,89229.0,0.26439773]
[1769553290089,0.11192685,89238.0,89231.0,0.05603409]
[1769553290261,0.0002,89239.0,89231.0,0.05603409]
[1769553290470,0.0002,89239.0,89237.0,0.05603057]
[1769553290877,0.0002,89239.0,89238.0,0.05602994]
[1769553291169,1e-08,89239.0,89238.0,0.05602994]
[1769553291363,1e-08,89239.0,89238.0,0.07926788]
[1769553292856,1e-08,89239.0,89238.0,0.02323794]
[1769553293230,1e-08,89239.0,89230.0,0.02323794]
[1769553293450,1e-08,89239.0,89234.0,0.0560319]
[1769553293659,1e-08,89239.0,89235.0,0.05603171]
[1769553294199,0.09412275,89248.0,89234.0,0.0560319]
[1769553294382,0.09417531,89248.0,89233.0,0.05603298]
[1769553294540,0.09417531,89248.0,89234.0,0.05603242]
[1769553294738,0.09417531,89248.0,89235.0,0.05603154]
[1769553295769,0.09417531,89248.0,89236.0,0.05603107]
[1769553296920,0.09417531,89248.0,89234.0,0.05603196]
[1769553298121,0.09417531,89248.0,89235.0,0.08039087]
[1769553298307,0.09417531,89248.0,89235.0,0.0243592]
[1769553299457,0.09417531,89248.0,89230.0,0.05603484]
[1769553299655,0.09417531,89248.0,89231.0,0.05603411]
[1769553300224,0.09417531,89248.0,89232.0,0.0243592]
[1769553302008,0.09417531,89248.0,89232.0,0.08039267]
[1769553302410,0.09417531,89248.0,89233.0,0.05603308]
[1769553302614,0.09417531,89248.0,89232.0,0.08039267]
[1769553303007,0.03917531,89248.0,89233.0,0.05603307]
[1769553303217,0.03917531,89248.0,89233.0,0.05603284]
[1769553303625,0.03917531,89248.0,89234.0,0.05603207]
[1769553303831,0.03917531,89248.0,89235.0,0.05603166]
[1769553304292,0.03917531,89248.0,89236.0,0.05603111]
[1769553304431,0.03917531,89248.0,89229.0,0.26439773]
[1769553304642,5.256e-05,89248.0,89240.0,0.0243592]
[1769553304845,5.256e-05,89248.0,89240.0,0.1025388]
[1769553305038,5.256e-05,89248.0,89241.0,0.0243592]
[1769553305728,5.256e-05,89248.0,89241.0,0.05602781]
[1769553305854,5.256e-05,89248.0,89242.0,0.08038657]
[1769553306059,5.256e-05,89248.0,89243.0,0.0243592]
[1769553307578,5.256e-05,89248.0,89244.0,0.0243592]
[1769553307708,5.256e-05,89248.0,89239.0,0.15856811]
[1769553307916,0.0001808,89253.0,89249.0,0.05602256]
[1769553308119,0.0001808,89253.0,89251.0,0.05602178]
[1769553308322,0.0002,89254.0,89248.0,0.22409231]
[1769553308323,0.0002,89254.0,89253.0,0.05602052]
[1769553308725,0.0002,89254.0,89253.0,0.08037972]
[1769553308926,0.0001808,89263.0,89256.0,0.05601805]
[1769553309122,0.0001808,89263.0,89255.0,0.05601805]
[1769553309760,0.0001808,89263.0,89252.0,0.0243592]
[1769553309970,0.0001808,89263.0,89254.0,0.0560194]
[1769553310285,0.0001808,89263.0,89252.0,0.08037987]
[1769553310698,0.0001808,89263.0,89254.0,0.05601986]
[1769553311070,0.0001808,89263.0,89253.0,0.05602052]
[1769553311434,0.0001808,89263.0,89253.0,0.08037972]
[1769553311643,0.0001808,89263.0,89254.0,0.05601989]
[1769553311845,0.0001808,89263.0,89255.0,0.05601923]